fUST/lending_fUST_20250101
["ID","MTS","AMOUNT","RATE_DAILY","PERIOD"]
[347313580,1735680655527,-151.0,0.0002249,7]
[347313581,1735680655538,-281.645149,0.0002249,7]
[347313582,1735680655547,-158.8372,0.0002249,7]
[347313583,1735680655556,-158.8372,0.0002249,7]
[347313584,1735680655567,-158.8372,0.0002249,7]
[347313585,1735680655577,-158.8372,0.0002249,7]
[347313586,1735680655587,-158.8372,0.0002249,7]
[347313587,1735680655596,-158.8372,0.0002249,7]
[347313588,1735680655605,-158.8372,0.0002249,7]
[347313589,1735680655614,-158.8372,0.0002249,7]
[347313590,1735680655623,-158.8372,0.0002249,7]
[347313591,1735680655632,-158.8372,0.0002249,7]
[347313592,1735680655641,-158.8372,0.0002249,7]
[347313593,1735680655651,-158.8372,0.0002249,7]
[347313594,1735680655661,-158.8372,0.0002249,7]
[347313595,1735680655670,-158.8372,0.0002249,7]
[347313596,1735680655679,-158.8372,0.0002249,7]
[347313597,1735680655689,-158.8372,0.0002249,7]
[347313598,1735680655697,-158.8372,0.0002249,7]
[347313599,1735680655706,-158.8372,0.0002249,7]
[347313600,1735680655715,-158.8372,0.0002249,7]
[347313601,1735680655724,-158.837206,0.0002249,7]
[347313602,1735680655733,-151.0,0.0002249,7]
[347313603,1735680655742,-151.0,0.0002249,7]
[347313604,1735680655751,-151.0,0.0002249,7]
[347313605,1735680655761,-151.0,0.0002249,7]
[347313606,1735680655771,-151.0,0.0002249,7]
[347313607,1735680655781,-151.0,0.0002249,7]
[347313608,1735680655790,-151.0,0.0002249,7]
[347313609,1735680655799,-162.273921,0.0002249,7]
[347313610,1735680655809,-162.273921,0.0002249,7]
[347313611,1735680655822,-162.273921,0.0002249,7]
[347313612,1735680655831,-162.273921,0.0002249,7]
[347313613,1735680655841,-162.273921,0.0002249,7]
[347313614,1735680655850,-162.273921,0.0002249,7]
[347313615,1735680655860,-162.273921,0.0002249,7]
[347313616,1735680655870,-162.273921,0.0002249,7]
[347313617,1735680655880,-162.273921,0.0002249,7]
[347313618,1735680655889,-2314.86995045,0.00022492,2]
[347313619,1735680655898,-55296.80019629,0.00022492,2]
[347313620,1735680655908,-1301773.27161689,0.00022492,10]
[347313621,1735680656041,-17742.18499348,0.00022492,10]
[347313622,1735680656055,-63919.38293675,0.00022492,10]
[347313625,1735680691340,9320.0,0.00014522,30]
[347313660,1735681783577,-860.47330739,0.00017878,2]
[347313719,1735681832736,-3943.66477776,0.00017878,2]
[347313720,1735681832746,-24900.0,0.00018242,2]
[347313723,1735681832755,-500.0,0.00018245,2]
[347313725,1735681832765,-10189.67419024,0.00019078,2]
[347313727,1735681832774,-5164.75756255,0.00019124,2]
[347313729,1735681832784,-187.808,0.00019161,2]
[347313731,1735681832793,-464.87498039,0.00019178,2]
[347313733,1735681832802,-500.0,0.00019178,2]
[347313735,1735681832811,-500.0,0.00019178,2]
[347313737,1735681832820,-500.0,0.00019178,2]
[347313739,1735681832829,-500.0,0.00019178,2]
[347313740,1735681832839,-500.0,0.00019178,2]
[347313742,1735681832848,-500.0,0.00019178,2]
[347313745,1735681832858,-500.0,0.00019178,2]
[347313746,1735681832867,-500.0,0.00019178,2]
[347313748,1735681832876,-500.0,0.00019178,2]
[347313750,1735681832885,-176.25810038,0.00019178,2]
[347313752,1735681832894,-500.0,0.00019178,2]
[347313754,1735681832903,-486.53455558,0.00019178,2]
[347313756,1735681832912,-500.0,0.00019178,2]
[347313758,1735681832922,-504.37769987,0.00019178,2]
[347313760,1735681832936,-500.0,0.00019178,2]
[347313762,1735681832946,-500.0,0.00019178,2]
[347313764,1735681832955,-500.0,0.00019178,2]
[347313767,1735681832966,-500.0,0.00019178,2]
[347313769,1735681832976,-500.0,0.00019178,2]
[347313771,1735681832986,-500.0,0.00019178,2]
[347313773,1735681832995,-500.0,0.00019178,2]
[347313775,1735681833007,-500.0,0.00019178,2]
[347313777,1735681833016,-315.87050643,0.00019178,2]
[347313778,1735681833026,-500.0,0.00019178,2]
[347313780,1735681833035,-600.3,0.00019178,2]
[347313782,1735681833045,-500.0,0.00019178,2]
[347313784,1735681833056,-500.0,0.00019178,2]
[347313786,1735681833066,-500.0,0.00019178,2]
[347313787,1735681833076,-500.0,0.00019178,2]
[347313788,1735681833086,-500.0,0.00019178,2]
[347313789,1735681833096,-2869.51,0.00019178,2]
[347313790,1735681833106,-500.0,0.00019178,2]
[347313791,1735681833116,-500.0,0.00019178,2]
[347313792,1735681833125,-500.0,0.00019178,2]
[347313793,1735681833135,-511.32454678,0.00019178,2]
[347313795,1735681833145,-502.10993939,0.00019178,2]
[347313797,1735681833155,-500.0,0.00019178,2]
[347313799,1735681833164,-500.0,0.00019178,2]
[347313801,1735681833173,-535.38,0.00019178,2]
[347313803,1735681833182,-500.0,0.00019178,2]
[347313805,1735681833191,-500.0,0.00019178,2]
[347313807,1735681833200,-500.0,0.00019178,2]
[347313809,1735681833210,-500.0,0.00019178,2]
[347313811,1735681833219,-1371.67,0.00019178,2]
[347313813,1735681833228,-500.0,0.00019178,2]
[347313815,1735681833237,-501.04,0.00019178,2]
[347313817,1735681833246,-598.98,0.00019178,2]
[347313819,1735681833256,-500.0,0.00019178,2]
[347313821,1735681833266,-500.0,0.00019178,2]
[347313823,1735681833275,-548.87,0.00019178,2]
[347313825,1735681833285,-500.0,0.00019178,2]
[347313827,1735681833298,-500.0,0.00019178,2]
[347313829,1735681833308,-500.0,0.00019178,2]
[347313831,1735681833317,-500.0,0.00019178,2]
[347313833,1735681833327,-500.0,0.00019178,2]
[347313835,1735681833336,-500.0,0.00019178,2]
[347313837,1735681833346,-500.0,0.00019178,2]
[347313839,1735681833356,-500.0,0.00019178,2]
[347313841,1735681833365,-500.0,0.00019178,2]
[347313843,1735681833374,-500.0,0.00019178,2]
[347313845,1735681833383,-500.0,0.00019178,2]
[347313847,1735681833393,-578.14861766,0.00019178,2]
[347313849,1735681833402,-500.0,0.00019178,2]
[347313851,1735681833412,-730.65,0.00019178,2]
[347313853,1735681833421,-530.04,0.00019178,2]
[347313855,1735681833431,-500.0,0.00019178,2]
[347313857,1735681833440,-500.0,0.00019178,2]
[347313859,1735681833450,-500.0,0.00019178,2]
[347313861,1735681833459,-500.0,0.00019178,2]
[347313863,1735681833468,-500.0,0.00019178,2]
[347313865,1735681833477,-500.0,0.00019178,2]
[347313867,1735681833486,-500.0,0.00019178,2]
[347313869,1735681833496,-500.0,0.00019178,2]
[347313871,1735681833505,-500.0,0.00019178,2]
[347313873,1735681833514,-1588.43,0.00019178,2]
[347313875,1735681833523,-500.0,0.00019178,2]
[347313877,1735681833533,-500.0,0.00019178,2]
[347313879,1735681833542,-500.0,0.00019178,2]
[347313881,1735681833551,-500.0,0.00019178,2]
[347313883,1735681833560,-500.0,0.00019178,2]
[347313885,1735681833570,-500.0,0.00019178,2]
[347313887,1735681833579,-500.0,0.00019178,2]
[347313889,1735681833588,-500.0,0.00019178,2]
[347313891,1735681833598,-501.98,0.00019178,2]
[347313893,1735681833607,-500.0,0.00019178,2]
[347313895,1735681833616,-500.0,0.00019178,2]
[347313897,1735681833626,-730.1,0.00019178,2]
[347313899,1735681833635,-500.0,0.00019178,2]
[347313901,1735681833644,-20519.54,0.00019178,2]
[347313902,1735681833654,-500.0,0.00019178,2]
[347313903,1735681833664,-500.0,0.00019178,2]
[347313905,1735681833674,-836.29,0.00019178,2]
[347313907,1735681833683,-500.0,0.00019178,2]
[347313909,1735681833693,-500.0,0.00019178,2]
[347313911,1735681833703,-500.0,0.00019178,2]
[347313913,1735681833714,-500.0,0.00019178,2]
[347313915,1735681833723,-926.38,0.00019178,2]
[347313917,1735681833733,-683.0,0.00019178,2]
[347313919,1735681833743,-715.77,0.00019178,2]
[347313921,1735681833752,-511.31,0.00019178,2]
[347313923,1735681833762,-500.0,0.00019178,2]
[347313925,1735681833771,-1211.93,0.00019178,2]
[347313926,1735681833781,-500.0,0.00019178,2]
[347313928,1735681833790,-500.0,0.00019178,2]
[347313930,1735681833800,-500.0,0.00019178,2]
[347313932,1735681833809,-500.0,0.00019178,2]
[347313934,1735681833819,-2700.84,0.00019178,2]
[347313948,1735681833963,-521.15,0.00019178,2]
[347313950,1735681833974,-500.0,0.00019178,2]
[347313952,1735681833983,-500.0,0.00019178,2]
[347313954,1735681833995,-802.62,0.00019178,2]
[347313956,1735681834005,-303.69,0.00019178,2]
[347313957,1735681834015,-500.0,0.00019178,2]
[347313958,1735681834025,-612.25,0.00019178,2]
[347313959,1735681834034,-500.0,0.00019178,2]
[347313960,1735681834043,-500.0,0.00019178,2]
[347313961,1735681834053,-422.41771024,0.00019178,2]
[347313962,1735681834062,-500.0,0.00019178,2]
[347313963,1735681834071,-500.0,0.00019178,2]
[347313964,1735681834081,-500.0,0.00019178,2]
[347313965,1735681834091,-500.0,0.00019178,2]
[347313966,1735681834100,-4674.97,0.00019178,2]
[347313967,1735681834110,-500.0,0.00019178,2]
[347313968,1735681834119,-500.0,0.00019178,2]
[347313969,1735681834129,-522.2,0.00019178,2]
[347313970,1735681834139,-500.0,0.00019178,2]
[347313971,1735681834149,-325.68209479,0.00019178,2]
[347313972,1735681834159,-618.94,0.00019178,2]
[347313973,1735681834168,-500.0,0.00019178,2]
[347313974,1735681834178,-2189.99,0.00019178,2]
[347313975,1735681834188,-791.33,0.00019178,2]
[347313976,1735681834198,-500.0,0.00019178,2]
[347313977,1735681834207,-500.0,0.00019178,2]
[347313978,1735681834217,-500.0,0.00019178,2]
[347313979,1735681834227,-472.7103995,0.00019178,2]
[347313980,1735681834237,-1039.41,0.00019178,2]
[347313981,1735681834247,-500.0,0.00019178,2]
[347313982,1735681834257,-1645.65,0.00019178,2]
[347313983,1735681834267,-500.0,0.00019178,2]
[347313984,1735681834277,-500.0,0.00019178,2]
[347313985,1735681834288,-500.0,0.00019178,2]
[347313986,1735681834297,-500.0,0.00019178,2]
[347313987,1735681834307,-4620.02,0.00019178,2]
[347313988,1735681834317,-1047.88,0.00019178,2]
[347313989,1735681834327,-500.0,0.00019178,2]
[347313990,1735681834336,-500.0,0.00019178,2]
[347313991,1735681834346,-2742.12,0.00019178,2]
[347313992,1735681834356,-500.0,0.00019178,2]
[347313993,1735681834365,-500.0,0.00019178,2]
[347313994,1735681834374,-167.764695,0.00019178,2]
[347313995,1735681834384,-210.66221632,0.00019251,2]
[347313996,1735681834394,-500.0,0.00019251,2]
[347313997,1735681834404,-500.96165095,0.00019251,2]
[347313998,1735681834414,-500.0,0.00019251,2]
[347313999,1735681834423,-10189.67419014,0.00019252,2]
[347314000,1735681834432,-10189.67419014,0.00019426,2]
[347314001,1735681834442,-500.0,0.00019452,3]
[347314002,1735681834452,-500.0,0.00019452,3]
[347314003,1735681834461,-500.0,0.00019452,3]
[347314004,1735681834471,-500.0,0.00019452,3]
[347314005,1735681834480,-500.0,0.00019452,3]
[347314006,1735681834492,-500.0,0.00019452,3]
[347314007,1735681834502,-500.0,0.00019452,3]
[347314008,1735681834511,-500.0,0.00019452,3]
[347314009,1735681834520,-500.0,0.00019452,3]
[347314010,1735681834529,-500.0,0.00019452,3]
[347314011,1735681834538,-500.0,0.00019452,3]
[347314012,1735681834547,-500.0,0.00019452,3]
[347314013,1735681834557,-500.0,0.00019452,3]
[347314014,1735681834566,-500.0,0.00019452,3]
[347314015,1735681834576,-500.0,0.00019452,3]
[347314016,1735681834586,-500.0,0.00019452,3]
[347314017,1735681834595,-500.0,0.00019452,3]
[347314018,1735681834604,-500.0,0.00019452,3]
[347314019,1735681834614,-600.3,0.00019452,3]
[347314020,1735681834623,-500.0,0.00019452,3]
[347314021,1735681834632,-500.0,0.00019452,3]
[347314022,1735681834642,-500.0,0.00019452,3]
[347314023,1735681834651,-500.0,0.00019452,3]
[347314024,1735681834661,-500.0,0.00019452,3]
[347314025,1735681834671,-2869.51,0.00019452,3]
[347314026,1735681834680,-500.0,0.00019452,3]
[347314027,1735681834689,-500.0,0.00019452,3]
[347314028,1735681834699,-500.0,0.00019452,3]
[347314029,1735681834708,-500.0,0.00019452,3]
[347314030,1735681834718,-535.38,0.00019452,3]
[347314031,1735681834728,-500.0,0.00019452,3]
[347314032,1735681834738,-500.0,0.00019452,3]
[347314033,1735681834748,-500.0,0.00019452,3]
[347314034,1735681834757,-1371.67,0.00019452,3]
[347314035,1735681834767,-500.0,0.00019452,3]
[347314036,1735681834777,-501.04,0.00019452,3]
[347314037,1735681834786,-598.98,0.00019452,3]
[347314038,1735681834796,-500.0,0.00019452,3]
[347314039,1735681834806,-548.87,0.00019452,3]
[347314040,1735681834815,-500.0,0.00019452,3]
[347314041,1735681834824,-500.0,0.00019452,3]
[347314042,1735681834834,-500.0,0.00019452,3]
[347314043,1735681834844,-500.0,0.00019452,3]
[347314044,1735681834854,-500.0,0.00019452,3]
[347314045,1735681834863,-500.0,0.00019452,3]
[347314046,1735681834872,-730.65,0.00019452,3]
[347314047,1735681834882,-530.04,0.00019452,3]
[347314048,1735681834891,-500.0,0.00019452,3]
[347314049,1735681834901,-500.0,0.00019452,3]
[347314050,1735681834911,-500.0,0.00019452,3]
[347314051,1735681834920,-500.0,0.00019452,3]
[347314052,1735681834933,-500.0,0.00019452,3]
[347314053,1735681834943,-500.0,0.00019452,3]
[347314054,1735681834952,-500.0,0.00019452,3]
[347314055,1735681834961,-500.0,0.00019452,3]
[347314056,1735681834971,-1588.43,0.00019452,3]
[347314057,1735681834982,-500.0,0.00019452,3]
[347314058,1735681834991,-500.0,0.00019452,3]
[347314059,1735681835001,-500.0,0.00019452,3]
[347314060,1735681835011,-500.0,0.00019452,3]
[347314061,1735681835020,-500.0,0.00019452,3]
[347314062,1735681835030,-500.0,0.00019452,3]
[347314063,1735681835040,-500.0,0.00019452,3]
[347314064,1735681835049,-500.0,0.00019452,3]
[347314065,1735681835059,-501.98,0.00019452,3]
[347314066,1735681835068,-500.0,0.00019452,3]
[347314067,1735681835078,-370.37278133,0.00019452,3]
[347314068,1735681835088,-730.1,0.00019452,3]
[347314069,1735681835098,-20519.54,0.00019452,3]
[347314070,1735681835107,-500.0,0.00019452,3]
[347314071,1735681835116,-500.0,0.00019452,3]
[347314072,1735681835126,-836.29,0.00019452,3]
[347314073,1735681835135,-500.0,0.00019452,3]
[347314074,1735681835145,-500.0,0.00019452,3]
[347314075,1735681835154,-926.38,0.00019452,3]
[347314076,1735681835164,-683.0,0.00019452,3]
[347314077,1735681835175,-715.77,0.00019452,3]
[347314078,1735681835184,-511.31,0.00019452,3]
[347314079,1735681835194,-500.0,0.00019452,3]
[347314080,1735681835204,-1211.93,0.00019452,3]
[347314081,1735681835213,-500.0,0.00019452,3]
[347314082,1735681835223,-2700.84,0.00019452,3]
[347314083,1735681835232,-521.15,0.00019452,3]
[347314084,1735681835241,-500.0,0.00019452,3]
[347314085,1735681835251,-500.0,0.00019452,3]
[347314086,1735681835260,-802.62,0.00019452,3]
[347314087,1735681835270,-500.0,0.00019452,3]
[347314088,1735681835279,-612.25,0.00019452,3]
[347314089,1735681835289,-500.0,0.00019452,3]
[347314090,1735681835298,-500.0,0.00019452,3]
[347314091,1735681835308,-500.0,0.00019452,3]
[347314092,1735681835318,-500.0,0.00019452,3]
[347314093,1735681835327,-500.0,0.00019452,3]
[347314094,1735681835338,-4674.97,0.00019452,3]
[347314095,1735681835347,-500.0,0.00019452,3]
[347314096,1735681835357,-500.0,0.00019452,3]
[347314097,1735681835367,-522.2,0.00019452,3]
[347314098,1735681835376,-500.0,0.00019452,3]
[347314099,1735681835386,-618.94,0.00019452,3]
[347314100,1735681835395,-500.0,0.00019452,3]
[347314101,1735681835405,-2189.99,0.00019452,3]
[347314102,1735681835414,-791.33,0.00019452,3]
[347314103,1735681835423,-500.0,0.00019452,3]
[347314104,1735681835432,-500.0,0.00019452,3]
[347314105,1735681835441,-500.0,0.00019452,3]
[347314106,1735681835450,-1039.41,0.00019452,3]
[347314107,1735681835460,-1645.65,0.00019452,3]
[347314108,1735681835469,-500.0,0.00019452,3]
[347314109,1735681835478,-500.0,0.00019452,3]
[347314110,1735681835487,-500.0,0.00019452,3]
[347314111,1735681835496,-500.0,0.00019452,3]
[347314112,1735681835505,-4620.02,0.00019452,3]
[347314113,1735681835514,-500.0,0.00019452,3]
[347314114,1735681835524,-1047.88,0.00019452,3]
[347314115,1735681835533,-500.0,0.00019452,3]
[347314116,1735681835542,-2742.12,0.00019452,3]
[347314117,1735681835551,-500.0,0.00019452,3]
[347314118,1735681835559,-500.0,0.00019452,2]
[347314119,1735681835569,-500.0,0.00019473,2]
[347314120,1735681835579,-500.57639798,0.00019473,2]
[347314121,1735681835587,-500.0,0.00019473,2]
[347314122,1735681835596,-152.0,0.00019518,2]
[347314123,1735681835605,-10189.67419014,0.000196,2]
[347314124,1735681835614,-500.0,0.00019726,3]
[347314125,1735681835624,-500.0,0.00019726,3]
[347314126,1735681835633,-254.7353806,0.00019726,3]
[347314127,1735681835642,-500.0,0.00019726,3]
[347314128,1735681835651,-500.0,0.00019726,3]
[347314129,1735681835660,-500.0,0.00019726,3]
[347314130,1735681835669,-500.0,0.00019726,3]
[347314131,1735681835681,-500.0,0.00019726,3]
[347314132,1735681835690,-500.0,0.00019726,3]
[347314133,1735681835699,-500.0,0.00019726,3]
[347314134,1735681835708,-500.0,0.00019726,3]
[347314135,1735681835717,-500.0,0.00019726,3]
[347314136,1735681835726,-500.0,0.00019726,3]
[347314137,1735681835735,-500.0,0.00019726,3]
[347314138,1735681835744,-500.0,0.00019726,3]
[347314139,1735681835754,-600.3,0.00019726,3]
[347314140,1735681835763,-500.0,0.00019726,3]
[347314141,1735681835772,-500.0,0.00019726,3]
[347314142,1735681835781,-500.0,0.00019726,3]
[347314143,1735681835791,-500.0,0.00019726,3]
[347314144,1735681835800,-2869.51,0.00019726,3]
[347314145,1735681835810,-500.0,0.00019726,3]
[347314146,1735681835819,-500.0,0.00019726,3]
[347314147,1735681835828,-500.0,0.00019726,3]
[347314148,1735681835837,-500.0,0.00019726,3]
[347314149,1735681835848,-535.38,0.00019726,3]
[347314150,1735681835857,-500.0,0.00019726,3]
[347314151,1735681835867,-500.0,0.00019726,3]
[347314152,1735681835876,-500.0,0.00019726,3]
[347314153,1735681835885,-1371.67,0.00019726,3]
[347314154,1735681835894,-501.04,0.00019726,3]
[347314155,1735681835903,-598.98,0.00019726,3]
[347314156,1735681835912,-500.0,0.00019726,3]
[347314157,1735681835922,-548.87,0.00019726,3]
[347314158,1735681835935,-500.0,0.00019726,3]
[347314159,1735681835944,-500.0,0.00019726,3]
[347314160,1735681835953,-447.31963962,0.00019726,3]
[347314161,1735681835962,-500.0,0.00019726,3]
[347314162,1735681835971,-500.0,0.00019726,3]
[347314163,1735681835981,-500.0,0.00019726,3]
[347314164,1735681835990,-730.65,0.00019726,3]
[347314165,1735681835999,-530.04,0.00019726,3]
[347314166,1735681836009,-500.0,0.00019726,3]
[347314167,1735681836018,-500.0,0.00019726,3]
[347314168,1735681836027,-500.0,0.00019726,3]
[347314169,1735681836037,-500.0,0.00019726,3]
[347314170,1735681836046,-500.0,0.00019726,3]
[347314171,1735681836055,-500.0,0.00019726,3]
[347314172,1735681836064,-500.0,0.00019726,3]
[347314173,1735681836073,-1588.43,0.00019726,3]
[347314174,1735681836082,-500.0,0.00019726,3]
[347314175,1735681836091,-500.0,0.00019726,3]
[347314176,1735681836100,-500.0,0.00019726,3]
[347314177,1735681836109,-500.0,0.00019726,3]
[347314178,1735681836118,-159.61783363,0.00019726,3]
[347314179,1735681836128,-500.0,0.00019726,3]
[347314180,1735681836138,-500.0,0.00019726,3]
[347314181,1735681836147,-501.98,0.00019726,3]
[347314182,1735681836157,-500.0,0.00019726,3]
[347314183,1735681836166,-730.1,0.00019726,3]
[347314184,1735681836177,-20519.54,0.00019726,3]
[347314185,1735681836186,-500.0,0.00019726,3]
[347314186,1735681836195,-500.0,0.00019726,3]
[347314187,1735681836204,-836.29,0.00019726,3]
[347314188,1735681836213,-500.0,0.00019726,3]
[347314189,1735681836222,-500.0,0.00019726,3]
[347314190,1735681836231,-926.38,0.00019726,3]
[347314191,1735681836240,-683.0,0.00019726,3]
[347314192,1735681836251,-715.77,0.00019726,3]
[347314193,1735681836261,-511.31,0.00019726,3]
[347314194,1735681836270,-500.0,0.00019726,3]
[347314195,1735681836279,-1211.93,0.00019726,3]
[347314196,1735681836289,-500.0,0.00019726,3]
[347314197,1735681836298,-2700.84,0.00019726,3]
[347314198,1735681836307,-521.15,0.00019726,3]
[347314199,1735681836315,-500.0,0.00019726,3]
[347314200,1735681836324,-500.0,0.00019726,3]
[347314201,1735681836335,-802.62,0.00019726,3]
[347314202,1735681836347,-500.0,0.00019726,3]
[347314203,1735681836358,-612.25,0.00019726,3]
[347314204,1735681836368,-500.0,0.00019726,3]
[347314205,1735681836379,-500.0,0.00019726,3]
[347314206,1735681836388,-463.53792228,0.00019726,3]
[347314207,1735681836398,-500.0,0.00019726,3]
[347314208,1735681836407,-500.0,0.00019726,3]
[347314209,1735681836416,-4674.97,0.00019726,3]
[347314210,1735681836427,-500.0,0.00019726,3]
[347314211,1735681836436,-500.0,0.00019726,3]
[347314212,1735681836445,-522.2,0.00019726,3]
[347314213,1735681836455,-500.0,0.00019726,3]
[347314214,1735681836464,-618.94,0.00019726,3]
[347314215,1735681836473,-500.0,0.00019726,3]
[347314216,1735681836482,-2189.99,0.00019726,3]
[347314217,1735681836491,-791.33,0.00019726,3]
[347314218,1735681836500,-500.0,0.00019726,3]
[347314219,1735681836509,-500.0,0.00019726,3]
[347314220,1735681836519,-500.0,0.00019726,3]
[347314221,1735681836527,-1039.41,0.00019726,3]
[347314222,1735681836537,-1645.65,0.00019726,3]
[347314223,1735681836546,-500.0,0.00019726,3]
[347314224,1735681836554,-500.0,0.00019726,3]
[347314225,1735681836563,-500.0,0.00019726,3]
[347314226,1735681836573,-500.0,0.00019726,3]
[347314227,1735681836582,-4620.02,0.00019726,3]
[347314228,1735681836591,-500.0,0.00019726,3]
[347314229,1735681836600,-1047.88,0.00019726,3]
[347314230,1735681836609,-500.0,0.00019726,3]
[347314231,1735681836618,-2742.12,0.00019726,3]
[347314232,1735681836628,-500.0,0.00019726,3]
[347314233,1735681836637,-500.0,0.00019726,2]
[347314234,1735681836646,-10189.67419014,0.00019774,2]
[347314235,1735681836655,-10189.67419014,0.00019948,2]
[347314236,1735681836664,-500.0,0.0002,3]
[347314237,1735681836674,-500.0,0.0002,3]
[347314238,1735681836683,-500.0,0.0002,3]
[347314239,1735681836692,-500.0,0.0002,3]
[347314240,1735681836701,-500.0,0.0002,3]
[347314241,1735681836711,-500.0,0.0002,3]
[347314242,1735681836720,-500.0,0.0002,3]
[347314243,1735681836729,-500.0,0.0002,3]
[347314244,1735681836738,-422.46889447,0.0002,3]
[347314245,1735681836747,-600.3,0.0002,3]
[347314246,1735681836756,-500.0,0.0002,3]
[347314247,1735681836765,-500.0,0.0002,3]
[347314248,1735681836774,-500.0,0.0002,3]
[347314249,1735681836783,-2869.51,0.0002,3]
[347314250,1735681836792,-500.0,0.0002,3]
[347314251,1735681836801,-500.0,0.0002,3]
[347314252,1735681836811,-500.0,0.0002,3]
[347314253,1735681836820,-500.0,0.0002,3]
[347314254,1735681836829,-535.38,0.0002,3]
[347314255,1735681836838,-500.0,0.0002,3]
[347314256,1735681836846,-500.0,0.0002,3]
[347314257,1735681836855,-500.0,0.0002,3]
[347314258,1735681836864,-1371.67,0.0002,3]
[347314259,1735681836978,-501.04,0.0002,3]
[347314260,1735681836986,-598.98,0.0002,3]
[347314261,1735681836996,-500.0,0.0002,3]
[347314262,1735681837006,-548.87,0.0002,3]
[347314263,1735681837015,-529.51121776,0.0002,3]
[347314264,1735681837023,-500.0,0.0002,3]
[347314265,1735681837032,-500.0,0.0002,3]
[347314266,1735681837041,-500.0,0.0002,3]
[347314267,1735681837050,-500.0,0.0002,3]
[347314268,1735681837059,-730.65,0.0002,3]
[347314269,1735681837068,-530.04,0.0002,3]
[347314270,1735681837077,-500.0,0.0002,3]
[347314271,1735681837086,-500.0,0.0002,3]
[347314272,1735681837095,-500.0,0.0002,3]
[347314273,1735681837104,-500.0,0.0002,3]
[347314274,1735681837114,-500.0,0.0002,3]
[347314275,1735681837123,-500.0,0.0002,3]
[347314276,1735681837131,-500.0,0.0002,3]
[347314277,1735681837140,-1588.43,0.0002,3]
[347314278,1735681837149,-500.0,0.0002,3]
[347314279,1735681837158,-500.0,0.0002,3]
[347314280,1735681837166,-500.0,0.0002,3]
[347314281,1735681837176,-500.0,0.0002,3]
[347314282,1735681837185,-500.0,0.0002,3]
[347314283,1735681837194,-500.0,0.0002,3]
[347314284,1735681837204,-500.0,0.0002,3]
[347314285,1735681837213,-501.98,0.0002,3]
[347314286,1735681837222,-730.1,0.0002,3]
[347314287,1735681837231,-20519.54,0.0002,3]
[347314288,1735681837241,-500.0,0.0002,3]
[347314289,1735681837250,-500.0,0.0002,3]
[347314290,1735681837259,-836.29,0.0002,3]
[347314291,1735681837268,-500.0,0.0002,3]
[347314292,1735681837278,-500.0,0.0002,3]